lending/lending_fUSD_20250508
["ID","MTS","AMOUNT","RATE_DAILY","PERIOD"]
[360250867,1746662757614,-2000.0,0.0002,4]
[360250869,1746662784214,150.0,0.00018986,7]
[360250870,1746662785810,-1200.0,0.00019707,2]
[360250871,1746662785838,-1800.0,0.00019708,2]
[360250872,1746662789383,-5000.0,0.00019708,2]
[360250874,1746662875260,166.38,0.00019463,2]
[360250875,1746662987684,0.92582586,0.00016981,2]
[360250876,1746662987709,287.79417414,0.00016981,2]
[360250877,1746662987903,288.72,0.00019245,2]
[360250888,1746663032325,-151.0,0.00019706,2]
[360250889,1746663032335,-207.4,0.00019706,2]
[360250890,1746663032345,-200.59099853,0.00019706,2]
[360250891,1746663032358,-474.24925143,0.00019706,2]
[360250892,1746663032368,-200.0,0.00019707,2]
[360250893,1746663032379,-250.0,0.00019707,2]
[360250894,1746663032391,-1488.19907109,0.00019708,2]
[360250895,1746663032401,-200.0,0.00019713,2]
[360250896,1746663032411,-814.0,0.00019717,2]
[360250897,1746663032423,-1200.0,0.00019717,2]
[360250898,1746663032433,-300.0,0.00019717,2]
[360250899,1746663032444,-65322.81016188,0.00019718,2]
[360250900,1746663032455,-1000.0,0.00019766,2]
[360250901,1746663032467,-270.3237,0.00019789,2]
[360250902,1746663032478,-1567.46924969,0.000198,2]
[360250903,1746663032488,-1000.0,0.00019806,2]
[360250904,1746663032500,-1567.4692496,0.00019811,2]
[360250905,1746663032509,-1567.4692496,0.00019822,2]
[360250906,1746663032520,-1567.4692496,0.00019833,2]
[360250907,1746663032531,-1567.4692496,0.00019844,2]
[360250908,1746663032542,-473.08937349,0.00019856,2]
[360250909,1746663032554,-1094.37987611,0.00019856,2]
[360250910,1746663032564,-1567.4692496,0.00019867,2]
[360250911,1746663032574,-2500.00000002,0.00019867,2]
[360250913,1746663032583,-500.0,0.00019873,2]
[360250915,1746663032595,-500.0,0.00019873,2]
[360250917,1746663032605,-2015.2443,0.00019875,2]
[360250919,1746663032615,-1567.4692496,0.00019878,2]
[360250921,1746663032624,-16710.1184,0.00019886,2]
[360250923,1746663032634,-2500.0,0.00019886,2]
[360250926,1746663032643,-1567.4692496,0.00019889,2]
[360250928,1746663032653,-450.0,0.00019889,2]
[360250930,1746663032663,-450.0,0.00019889,2]
[360250932,1746663032673,-450.0,0.00019889,2]
[360250934,1746663032683,-450.0,0.00019889,2]
[360250936,1746663032693,-450.0,0.00019889,2]
[360250938,1746663032702,-165.14216265,0.00019898,2]
[360250940,1746663032713,-28525.578,0.00019899,2]
[360250942,1746663032723,-335.57187978,0.00019899,2]
[360250944,1746663032733,-2500.00000002,0.00019899,2]
[360250946,1746663032743,-1002.7908076,0.000199,2]
[360250948,1746663032754,-1567.4692496,0.000199,2]
[360250950,1746663032763,-342.31413444,0.000199,2]
[360250952,1746663032774,-165.14216264,0.000199,2]
[360250954,1746663032783,-170.07629032,0.000199,2]
[360250956,1746663032793,-2140.92125784,0.000199,2]
[360250958,1746663032803,-154.85634558,0.00019938,2]
[360250960,1746663032813,-500.0,0.00019973,2]
[360250962,1746663032823,-500.0,0.00019973,2]
[360250964,1746663032833,-500.0,0.00019973,2]
[360250966,1746663032843,-500.0,0.00019973,2]
[360250968,1746663032855,-500.0,0.00019973,2]
[360250970,1746663032864,-500.0,0.00019973,2]
[360250972,1746663032874,-450.0,0.00019985,2]
[360250974,1746663032884,-596.71,0.00019985,2]
[360250976,1746663032894,-450.0,0.00019985,2]
[360250978,1746663032903,-450.0,0.00019985,2]
[360250980,1746663032913,-147.55853856,0.00019985,2]
[360251136,1746663038095,-746.37256983,0.00019899,2]
[360251137,1746663038178,-403.3,0.00019899,2]
[360251138,1746663038231,-14.64686851,0.00019899,2]
[360251139,1746663038242,-302.44146144,0.00019985,2]
[360251140,1746663038254,-450.0,0.00019985,2]
[360251141,1746663038265,-450.0,0.00019985,2]
[360251142,1746663038275,-450.0,0.00019985,2]
[360251143,1746663038286,-450.0,0.00019985,2]
[360251144,1746663038296,-465.68,0.00019985,2]
[360251145,1746663038306,-450.0,0.00019985,2]
[360251146,1746663038316,-450.0,0.00019985,2]
[360251147,1746663038326,-450.0,0.00019985,2]
[360251148,1746663038336,-378.18,0.00019985,2]
[360251149,1746663038347,-475.51,0.00019985,2]
[360251150,1746663038357,-450.0,0.00019985,2]
[360251151,1746663038367,-450.0,0.00019985,2]
[360251152,1746663038380,-137.10989305,0.00019985,2]
[360251153,1746663038532,-312.89010695,0.00019985,2]
[360251155,1746663038543,-450.0,0.00019985,2]
[360251157,1746663038552,-450.0,0.00019985,2]
[360251158,1746663038563,-450.0,0.00019985,2]
[360251159,1746663038573,-673.68,0.00019985,2]
[360251160,1746663038583,-450.0,0.00019985,2]
[360251161,1746663038593,-450.0,0.00019985,2]
[360251162,1746663038602,-450.0,0.00019985,2]
[360251164,1746663038612,-450.0,0.00019985,2]
[360251165,1746663038622,-450.0,0.00019985,2]
[360251166,1746663038632,-450.0,0.00019985,2]
[360251167,1746663038642,-450.0,0.00019985,2]
[360251168,1746663038652,-450.0,0.00019985,2]
[360251169,1746663038662,-450.0,0.00019985,2]
[360251170,1746663038672,-9773.1,0.00019985,2]
[360251171,1746663038684,-2603.8920016,0.00019986,2]
[360251172,1746663038693,-5103.136459,0.00019986,2]
[360251173,1746663038702,-40727.4302994,0.00019986,2]
[360251174,1746663038714,-463.5627982,0.00019986,2]
[360251175,1746663038724,-214.23,0.00019987,2]
[360251176,1746663038735,-214.23,0.00019989,2]
[360251177,1746663038745,-213.93659188,0.0001999,2]
[360251178,1746663038758,-779.54,0.0001999,2]
[360251179,1746663038777,-1103.78704119,0.0001999,2]
[360251180,1746663040387,-450.0,0.00019985,2]
[360251181,1746663040399,-1155.5103966,0.00019986,2]
[360251182,1746663040409,-7698.2172816,0.0001999,2]
[360251183,1746663040423,-41303.73110074,0.0001999,2]
[360251184,1746663040437,-6162.73586877,0.0001999,2]
[360251185,1746663040448,-2239.99555988,0.0001999,2]
[360251186,1746663040460,-333.81892786,0.0001999,2]
[360251187,1746663040547,-37353.88542341,0.0001999,2]
[360251188,1746663040815,-243288.62981267,0.0001999,2]
[360251189,1746663040826,-450.0,0.00019995,2]
[360251190,1746663040837,-450.0,0.00019995,2]
[360251191,1746663040847,-266.44407434,0.00019995,2]
[360251192,1746663040857,-450.0,0.00019995,2]
[360251194,1746663040868,-468.46,0.00019995,2]
[360251196,1746663040878,-450.0,0.00019995,2]
[360251197,1746663040888,-450.0,0.00019995,2]
[360251198,1746663040898,-621.5,0.00019995,2]
[360251199,1746663040908,-450.0,0.00019995,2]
[360251200,1746663040917,-460.5,0.00019996,2]
[360251201,1746663040927,-450.0,0.00019996,2]
[360251202,1746663040937,-217.65,0.00019996,2]
[360251203,1746663040946,-500.0,0.00019996,2]
[360251204,1746663040955,-500.0,0.00019996,2]
[360251205,1746663040966,-500.0,0.00019996,2]
[360251206,1746663040977,-500.0,0.00019996,2]
[360251207,1746663040989,-625.68387995,0.00019996,2]
[360251208,1746663040999,-500.0,0.00019996,2]
[360251209,1746663041009,-500.0,0.00019996,2]
[360251210,1746663041019,-500.0,0.00019996,2]
[360251211,1746663041029,-500.0,0.00019996,2]
[360251212,1746663041041,-500.0,0.00019996,2]
[360251213,1746663041052,-500.0,0.00019996,2]
[360251214,1746663041063,-500.0,0.00019996,2]
[360251215,1746663041073,-500.0,0.00019996,2]
[360251216,1746663041084,-500.0,0.00019996,2]
[360251217,1746663041094,-500.0,0.00019996,2]
[360251218,1746663041104,-500.0,0.00019996,2]
[360251219,1746663041114,-500.0,0.00019996,2]
[360251220,1746663041123,-534.47015008,0.00019996,2]
[360251221,1746663041133,-500.0,0.00019996,2]
[360251222,1746663041143,-500.0,0.00019996,2]
[360251223,1746663041152,-500.0,0.00019996,2]
[360251224,1746663041162,-500.0,0.00019996,2]
[360251225,1746663041172,-500.0,0.00019996,2]
[360251226,1746663041181,-500.0,0.00019996,2]
[360251227,1746663041191,-500.0,0.00019996,2]
[360251228,1746663041200,-500.0,0.00019996,2]
[360251229,1746663041210,-500.0,0.00019996,2]
[360251230,1746663041220,-500.0,0.00019996,2]
[360251231,1746663041230,-500.0,0.00019996,2]
[360251232,1746663041239,-500.0,0.00019996,2]
[360251233,1746663041250,-500.0,0.00019996,2]
[360251234,1746663041260,-400.0,0.00019996,2]
[360251235,1746663041270,-500.0,0.00019996,2]
[360251236,1746663041280,-500.0,0.00019996,2]
[360251237,1746663041289,-500.0,0.00019996,2]
[360251238,1746663041300,-500.0,0.00019996,2]
[360251239,1746663041311,-500.0,0.00019996,2]
[360251240,1746663041322,-500.0,0.00019996,2]
[360251241,1746663041333,-500.0,0.00019996,2]
[360251242,1746663041343,-238.41171688,0.00019996,2]
[360251243,1746663041353,-447.45720713,0.00019996,2]
[360251244,1746663041363,-450.0,0.00019996,2]
[360251245,1746663041373,-450.0,0.00019996,2]
[360251246,1746663041385,-450.0,0.00019997,2]
[360251247,1746663041394,-450.0,0.00019997,2]
[360251248,1746663041404,-578.30680337,0.00019997,2]
[360251249,1746663041659,-450.0,0.00019997,2]
[360251250,1746663041670,-450.0,0.00019997,2]
[360251251,1746663041679,-450.0,0.00019997,2]
[360251252,1746663041689,-567.18085029,0.00019997,2]
[360251253,1746663041698,-450.0,0.00019997,2]
[360251254,1746663041708,-450.0,0.00019997,2]
[360251255,1746663041719,-450.0,0.00019997,2]
[360251256,1746663041728,-450.0,0.00019997,2]
[360251257,1746663041738,-450.0,0.00019997,2]
[360251258,1746663041748,-450.0,0.00019997,2]
[360251259,1746663041758,-450.0,0.00019997,2]
[360251260,1746663041767,-450.0,0.00019997,2]
[360251261,1746663041777,-450.0,0.00019997,2]
[360251262,1746663041786,-450.0,0.00019997,2]
[360251263,1746663041795,-450.0,0.00019997,2]
[360251264,1746663041805,-450.0,0.00019997,2]
[360251265,1746663041814,-628.07395844,0.00019997,2]
[360251266,1746663041824,-450.0,0.00019997,2]
[360251267,1746663041833,-512.5426036,0.00019997,2]
[360251268,1746663041842,-450.0,0.00019997,2]
[360251269,1746663041852,-450.0,0.00019997,2]
[360251270,1746663041862,-450.0,0.00019997,2]
[360251271,1746663041872,-450.0,0.00019997,2]
[360251272,1746663041882,-500.0,0.00019997,2]
[360251273,1746663041892,-450.0,0.00019997,2]
[360251274,1746663041902,-450.0,0.00019997,2]
[360251275,1746663041912,-450.0,0.00019997,2]
[360251276,1746663041921,-450.0,0.00019997,2]
[360251277,1746663041931,-450.0,0.00019997,2]
[360251278,1746663041941,-450.0,0.00019997,2]
[360251279,1746663041951,-450.0,0.00019997,2]
[360251280,1746663041961,-450.0,0.00019997,2]
[360251281,1746663041971,-450.0,0.00019997,2]
[360251282,1746663041983,-450.0,0.00019997,2]
[360251283,1746663041993,-510.0,0.00019997,2]
[360251284,1746663042003,-614.24,0.00019997,2]
[360251285,1746663042012,-450.0,0.00019997,2]
[360251286,1746663042022,-450.0,0.00019997,2]
[360251287,1746663042033,-450.0,0.00019997,2]
[360251288,1746663042043,-479.28,0.00019997,2]
[360251289,1746663042052,-1012.19,0.00019997,2]
[360251290,1746663042061,-450.0,0.00019997,2]
[360251291,1746663042072,-510.0,0.00019997,2]
[360251292,1746663042082,-450.0,0.00019997,2]
[360251293,1746663042092,-450.0,0.00019997,2]
[360251294,1746663042102,-450.0,0.00019997,2]
[360251295,1746663042112,-450.0,0.00019997,2]
[360251296,1746663042122,-450.0,0.00019997,2]
[360251297,1746663042132,-601.53,0.00019997,2]
[360251298,1746663042142,-450.0,0.00019997,2]
[360251299,1746663042151,-560.2752072,0.00019997,2]
[360251300,1746663042161,-450.0,0.00019997,2]
[360251301,1746663042171,-450.0,0.00019997,2]
[360251302,1746663042181,-470.41,0.00019997,2]
[360251303,1746663042191,-179.3207823,0.00019997,2]
[360251304,1746663042201,-450.0,0.00019997,2]
[360251305,1746663042212,-450.0,0.00019997,2]
[360251306,1746663042222,-450.0,0.00019997,2]
[360251307,1746663042232,-450.0,0.00019997,2]
[360251308,1746663042242,-479.58872183,0.00019997,2]
[360251309,1746663042252,-450.0,0.00019997,2]
[360251310,1746663042263,-450.0,0.00019997,2]
[360251311,1746663042273,-684.66,0.00019997,2]
[360251312,1746663042283,-450.0,0.00019997,2]
[360251313,1746663042293,-450.0,0.00019997,2]
[360251314,1746663042303,-450.0,0.00019997,2]
[360251315,1746663042313,-473.8258779,0.00019997,2]
[360251316,1746663042323,-450.0,0.00019997,2]
[360251317,1746663042334,-1131.95,0.00019997,2]
[360251318,1746663042343,-450.0,0.00019997,2]
[360251319,1746663042353,-1322.0,0.00019997,2]
[360251320,1746663042363,-450.0,0.00019997,2]
[360251321,1746663042373,-450.0,0.00019997,2]
[360251322,1746663042383,-450.0,0.00019997,2]
[360251323,1746663042396,-450.0,0.00019997,2]
[360251324,1746663042406,-450.0,0.00019997,2]
[360251325,1746663042416,-450.0,0.00019997,2]
[360251326,1746663042426,-1763.53,0.00019997,2]
[360251327,1746663042436,-450.0,0.00019997,2]
[360251328,1746663042446,-587.72,0.00019997,2]
[360251329,1746663042455,-2378.36,0.00019997,2]
[360251330,1746663042465,-450.0,0.00019997,2]
[360251331,1746663042478,-450.0,0.00019997,2]
[360251332,1746663042487,-450.0,0.00019997,2]
[360251333,1746663042497,-450.0,0.00019997,2]
[360251334,1746663042508,-1695.22,0.00019997,2]
[360251335,1746663042517,-450.0,0.00019998,2]
[360251336,1746663042528,-450.0,0.00019998,2]
[360251337,1746663042537,-450.0,0.00019998,2]
[360251338,1746663042546,-450.0,0.00019998,2]
[360251339,1746663042555,-1433.821,0.00019998,2]
[360251340,1746663042564,-450.0,0.00019998,2]
[360251341,1746663042573,-450.0,0.00019998,2]
[360251342,1746663042583,-533.1,0.00019998,2]
[360251343,1746663042592,-450.0,0.00019998,2]
[360251344,1746663042601,-450.0,0.00019998,2]
[360251345,1746663042610,-450.0,0.00019998,2]
[360251346,1746663042619,-450.0,0.00019998,2]
[360251347,1746663042628,-450.0,0.00019998,2]
[360251348,1746663042637,-450.0,0.00019998,2]
[360251349,1746663042646,-450.0,0.00019998,2]
[360251350,1746663042655,-450.0,0.00019998,2]
[360251351,1746663042664,-450.0,0.00019998,2]
[360251352,1746663042674,-450.0,0.00019998,2]
[360251353,1746663042684,-450.0,0.00019998,2]
[360251354,1746663042693,-450.0,0.00019998,2]
[360251355,1746663042703,-673.68,0.00019998,2]
[360251356,1746663042712,-673.68,0.00019998,2]
[360251357,1746663042722,-450.0,0.00019998,2]
[360251358,1746663042732,-450.0,0.00019998,2]
[360251359,1746663042741,-450.0,0.00019998,2]
[360251360,1746663042751,-468.46,0.00019998,2]
[360251361,1746663042761,-468.46,0.00019998,2]
[360251362,1746663042771,-450.0,0.00019998,2]
[360251363,1746663042780,-450.0,0.00019998,2]
[360251364,1746663042790,-450.0,0.00019998,2]
[360251365,1746663042799,-450.0,0.00019998,2]
[360251366,1746663042809,-450.0,0.00019998,2]
[360251367,1746663042820,-450.0,0.00019998,2]
[360251368,1746663042830,-621.5,0.00019998,2]
[360251369,1746663042839,-621.5,0.00019998,2]
[360251370,1746663042849,-9773.1,0.00019998,2]
[360251371,1746663042859,-450.0,0.00019998,2]
[360251372,1746663042868,-450.0,0.00019998,2]
[360251373,1746663042878,-450.0,0.00019998,2]
[360251374,1746663042887,-450.0,0.00019998,2]
[360251375,1746663042897,-450.0,0.00019998,2]
[360251376,1746663042906,-300.0,0.00019999,2]
[360251377,1746663042916,-300.0,0.00019999,2]
[360251378,1746663042926,-670.59290321,0.00019999,2]
[360251379,1746663042936,-450.0,0.00019999,2]
[360251380,1746663042947,-450.0,0.00019999,2]
[360251381,1746663042958,-450.0,0.00019999,2]
[360251382,1746663042968,-450.0,0.00019999,2]
[360251383,1746663042978,-450.0,0.00019999,2]
[360251384,1746663042987,-450.0,0.00019999,2]
[360251385,1746663042997,-450.0,0.00019999,2]
[360251386,1746663043007,-450.0,0.00019999,2]
[360251387,1746663043017,-472.38,0.00019999,2]
[360251388,1746663043027,-450.0,0.00019999,2]
[360251389,1746663043036,-450.0,0.00019999,2]
[360251392,1746663043046,-450.0,0.00019999,2]
[360251394,1746663043056,-300.49,0.00019999,2]
[360251396,1746663043066,-450.0,0.00019999,2]
[360251398,1746663043076,-430.26,0.00019999,2]
[360251401,1746663043086,-245.48,0.00019999,2]
[360251404,1746663043096,-450.0,0.00019999,2]
[360251406,1746663043106,-450.0,0.00019999,2]
[360251408,1746663043115,-450.0,0.00019999,2]
[360251409,1746663043126,-450.0,0.00019999,2]
[360251410,1746663043137,-450.0,0.00019999,2]
[360251411,1746663043148,-450.0,0.00019999,2]
[360251412,1746663043159,-450.0,0.00019999,2]
[360251413,1746663043168,-450.0,0.00019999,2]
[360251414,1746663043178,-450.0,0.00019999,2]
[360251415,1746663043188,-235.94,0.00019999,2]
[360251416,1746663043198,-151.0,0.00019999,2]
[360251417,1746663043208,-588.03,0.00019999,2]
[360251418,1746663043218,-450.0,0.00019999,2]
[360251419,1746663043228,-450.0,0.00019999,2]
[360251420,1746663043237,-450.0,0.00019999,2]
[360251421,1746663043248,-450.0,0.00019999,2]
[360251422,1746663043258,-450.0,0.00019999,2]
[360251423,1746663043268,-450.0,0.00019999,2]
[360251424,1746663043277,-450.0,0.00019999,2]
[360251425,1746663043287,-333.58,0.00019999,2]
[360251426,1746663043297,-614.24,0.00019999,2]
[360251427,1746663043307,-614.24,0.00019999,2]
[360251428,1746663043318,-614.24,0.00019999,2]
[360251429,1746663043328,-614.24,0.00019999,2]
[360251430,1746663043338,-614.24,0.00019999,2]
[360251431,1746663043348,-614.24,0.00019999,2]
[360251432,1746663043358,-614.24,0.00019999,2]
[360251433,1746663043368,-614.24,0.00019999,2]
[360251434,1746663043378,-614.24,0.00019999,2]
[360251435,1746663043390,-614.24,0.00019999,2]
[360251436,1746663043401,-614.24,0.00019999,2]
[360251437,1746663043411,-614.24,0.00019999,2]
[360251438,1746663043421,-614.24,0.00019999,2]
[360251439,1746663043433,-614.24,0.00019999,2]
[360251440,1746663043443,-614.24,0.00019999,2]
[360251441,1746663043454,-614.24,0.00019999,2]
[360251442,1746663043465,-614.24,0.00019999,2]
[360251443,1746663043475,-614.24,0.00019999,2]
[360251444,1746663043484,-614.24,0.00019999,2]
[360251445,1746663043495,-614.24,0.00019999,2]
[360251446,1746663043504,-614.24,0.00019999,2]
[360251447,1746663043514,-614.24,0.00019999,2]
[360251448,1746663043524,-614.28,0.00019999,2]
[360251449,1746663043534,-450.0,0.00019999,2]
[360251450,1746663043544,-450.0,0.00019999,2]
[360251451,1746663043554,-450.0,0.00019999,2]
[360251452,1746663043563,-450.0,0.00019999,2]
[360251453,1746663043573,-450.0,0.00019999,2]
[360251454,1746663043583,-450.0,0.00019999,2]
[360251455,1746663043593,-450.0,0.00019999,2]
[360251456,1746663043603,-450.0,0.00019999,2]
[360251457,1746663043614,-450.0,0.00019999,2]
[360251458,1746663043624,-450.0,0.00019999,2]
[360251460,1746663043634,-450.0,0.00019999,2]
[360251461,1746663043644,-450.0,0.00019999,2]
[360251462,1746663043653,-450.0,0.00019999,2]
[360251463,1746663043663,-450.0,0.00019999,2]
[360251464,1746663043673,-450.0,0.00019999,2]
[360251465,1746663043686,-450.0,0.00019999,2]
[360251466,1746663043699,-450.0,0.00019999,2]
[360251467,1746663043714,-450.0,0.00019999,2]
[360251468,1746663043727,-450.0,0.00019999,2]
[360251469,1746663043740,-450.0,0.00019999,2]
[360251470,1746663043752,-450.0,0.00019999,2]
[360251471,1746663043764,-541.72,0.00019999,2]
[360251473,1746663043776,-450.0,0.00019999,2]
[360251475,1746663043790,-450.0,0.00019999,2]
[360251476,1746663043804,-450.0,0.00019999,2]
[360251477,1746663043817,-450.0,0.00019999,2]
[360251478,1746663043835,-450.0,0.00019999,2]
[360251479,1746663043850,-450.0,0.00019999,2]
[360251480,1746663043863,-450.0,0.00019999,2]
[360251481,1746663043877,-450.0,0.00019999,2]
[360251482,1746663043891,-450.0,0.00019999,2]
[360251483,1746663043905,-450.0,0.00019999,2]
[360251484,1746663043919,-450.0,0.00019999,2]
[360251485,1746663043931,-450.0,0.00019999,2]
[360251486,1746663043942,-450.0,0.00019999,2]
[360251487,1746663043954,-450.0,0.00019999,2]
[360251488,1746663043966,-314.52,0.00019999,2]
[360251489,1746663043980,-450.0,0.00019999,2]
[360251490,1746663043992,-450.0,0.00019999,2]
[360251491,1746663044007,-450.0,0.00019999,2]
[360251492,1746663044019,-450.0,0.00019999,2]
[360251493,1746663044032,-450.0,0.00019999,2]
[360251494,1746663044044,-450.0,0.00019999,2]
[360251495,1746663044057,-450.0,0.00019999,2]
[360251496,1746663044070,-450.0,0.00019999,2]
[360251497,1746663044083,-450.0,0.00019999,2]
[360251498,1746663044096,-601.53,0.00019999,2]
[360251499,1746663044108,-450.0,0.00019999,2]
[360251500,1746663044122,-601.53,0.00019999,2]
[360251501,1746663044134,-461.3,0.00019999,2]
[360251502,1746663044147,-601.53,0.00019999,2]
[360251503,1746663044160,-601.53,0.00019999,2]
[360251504,1746663044173,-601.53,0.00019999,2]
[360251505,1746663044185,-601.53,0.00019999,2]
[360251506,1746663044198,-601.53,0.00019999,2]
[360251507,1746663044211,-601.53,0.00019999,2]
[360251508,1746663044224,-601.53,0.00019999,2]
[360251509,1746663044236,-601.53,0.00019999,2]
[360251510,1746663044253,-601.53,0.00019999,2]
[360251511,1746663044266,-601.53,0.00019999,2]
[360251512,1746663044278,-601.53,0.00019999,2]
[360251513,1746663044290,-601.53,0.00019999,2]
[360251514,1746663044304,-601.53,0.00019999,2]
[360251515,1746663044322,-601.53,0.00019999,2]
[360251516,1746663044336,-601.53,0.00019999,2]
[360251517,1746663044349,-450.0,0.00019999,2]
[360251518,1746663044362,-601.53,0.00019999,2]
[360251519,1746663044375,-450.0,0.00019999,2]
[360251520,1746663044388,-601.53,0.00019999,2]
[360251521,1746663044399,-450.0,0.00019999,2]
[360251522,1746663044410,-601.53,0.00019999,2]
[360251523,1746663044422,-601.53,0.00019999,2]
[360251524,1746663044433,-450.0,0.00019999,2]
[360251525,1746663044446,-601.53,0.00019999,2]
[360251526,1746663044460,-450.0,0.00019999,2]
[360251527,1746663044473,-601.66,0.00019999,2]
[360251528,1746663044483,-450.0,0.00019999,2]
[360251529,1746663044494,-450.0,0.00019999,2]
[360251530,1746663044504,-450.0,0.00019999,2]
[360251531,1746663044516,-450.0,0.00019999,2]
[360251532,1746663044527,-450.0,0.00019999,2]
[360251533,1746663044539,-531.52,0.00019999,2]
[360251534,1746663044551,-450.0,0.00019999,2]
[360251535,1746663044565,-450.0,0.00019999,2]
[360251536,1746663044577,-450.0,0.00019999,2]
[360251537,1746663044588,-450.0,0.00019999,2]
[360251538,1746663044599,-450.0,0.00019999,2]
[360251539,1746663044609,-450.0,0.00019999,2]
[360251540,1746663044620,-450.0,0.00019999,2]
[360251541,1746663044630,-450.0,0.00019999,2]
[360251542,1746663044641,-450.0,0.00019999,2]
[360251543,1746663044652,-450.0,0.00019999,2]
[360251544,1746663044663,-450.0,0.00019999,2]
[360251545,1746663044679,-450.0,0.00019999,2]
[360251546,1746663044691,-450.0,0.00019999,2]
[360251547,1746663044702,-341.67326743,0.00019999,2]
[360251548,1746663044715,-450.0,0.00019999,2]
[360251549,1746663044728,-450.0,0.00019999,2]
[360251550,1746663044741,-450.0,0.00019999,2]
[360251551,1746663044754,-450.0,0.00019999,2]
[360251552,1746663044766,-450.0,0.00019999,2]
[360251553,1746663044779,-450.0,0.00019999,2]
[360251554,1746663044791,-450.0,0.00019999,2]
[360251555,1746663044803,-450.0,0.00019999,2]
[360251556,1746663044815,-450.0,0.00019999,2]
[360251557,1746663044828,-450.0,0.00019999,2]
[360251558,1746663044841,-450.0,0.00019999,2]
[360251559,1746663044856,-450.0,0.00019999,2]
[360251560,1746663044867,-259.26,0.00019999,2]
[360251561,1746663044883,-450.0,0.00019999,2]
[360251562,1746663044894,-450.0,0.00019999,2]
[360251563,1746663044907,-455.28,0.00019999,2]
[360251564,1746663044920,-199.12,0.00019999,2]
[360251565,1746663044931,-684.66,0.00019999,2]
[360251566,1746663044946,-684.66,0.00019999,2]
[360251567,1746663044959,-684.66,0.00019999,2]
[360251568,1746663044972,-684.66,0.00019999,2]
[360251569,1746663044983,-450.0,0.00019999,2]
[360251570,1746663044995,-684.66,0.00019999,2]
[360251571,1746663045008,-450.0,0.00019999,2]
[360251572,1746663045021,-684.66,0.00019999,2]
[360251573,1746663045033,-450.0,0.00019999,2]
[360251574,1746663045047,-684.66,0.00019999,2]
[360251575,1746663045059,-450.0,0.00019999,2]
[360251576,1746663045072,-684.66,0.00019999,2]
[360251577,1746663045094,-450.0,0.00019999,2]
[360251578,1746663045112,-450.0,0.00019999,2]
[360251579,1746663045126,-450.0,0.00019999,2]
[360251580,1746663045142,-450.0,0.00019999,2]
[360251581,1746663045156,-684.66,0.00019999,2]
[360251582,1746663045170,-554.36,0.00019999,2]
[360251583,1746663045183,-450.0,0.00019999,2]
[360251584,1746663045198,-684.66,0.00019999,2]
[360251585,1746663045211,-684.66,0.00019999,2]
[360251586,1746663045224,-673.68,0.00019999,2]
[360251587,1746663045237,-684.66,0.00019999,2]